bitfinex-derivatives/quotes_SOLF0:USTF0_20241226
["timestamp","ask_amount","ask_price","bid_price","bid_amount"]
[1735171498801,5.2027,198.65,198.54,2.5205]
[1735171498802,2.52,198.58,198.54,2.5205]
[1735171500113,5.2027,198.65,198.55,2.5203]
[1735171500410,5.2027,198.65,198.52,14.64980103]
[1735171500606,2.5197,198.61,198.56,2.5202]
[1735171500808,1.5427,198.65,198.56,2.5202]
[1735171501403,1.5427,198.65,198.54,2.5204]
[1735171501604,1.5427,198.65,198.53,10.98980103]
[1735171501806,2.5202,198.57,198.52,3.66]
[1735171502012,1.5427,198.65,198.52,3.66]
[1735171502212,1.5427,198.65,198.54,10.98980103]
[1735171502414,2.5199,198.59,198.56,2.5202]
[1735171502814,2.5199,198.59,198.54,10.98980103]
[1735171503019,2.5199,198.59,198.55,2.5203]
[1735171504511,2.5199,198.59,198.52,14.64980103]
[1735171504721,2.5197,198.6,198.56,2.5202]
[1735171504912,2.5197,198.6,198.52,14.64980103]
[1735171505109,1.5427,198.65,198.52,14.64980103]
[1735171505410,1.5427,198.65,198.57,2.5201]
[1735171506018,1.5427,198.65,198.58,2.52]
[1735171506209,1.5427,198.65,198.55,10.98980103]
[1735171507609,2.5196,198.61,198.57,2.5201]
[1735171507811,1.5427,198.65,198.58,10.98980103]
[1735171508015,2.5194,198.63,198.59,2.5197]
[1735171508413,1.5427,198.65,198.54,10.98980103]
[1735171509417,1.5427,198.65,198.57,2.5201]
[1735171509418,2.5197,198.61,198.57,2.5201]
[1735171509614,2.5197,198.61,198.54,10.98980103]
[1735171510208,2.5194,198.63,198.57,2.5201]
[1735171512329,2.5195,198.62,198.58,2.5199]
[1735171512930,1.5427,198.65,198.58,2.5199]
[1735171513121,2.5194,198.63,198.58,2.5199]
[1735171513617,1.5427,198.65,198.54,14.64980103]
[1735171514024,1.5427,198.65,198.54,10.98980103]
[1735171514217,7.01758346,198.61,198.54,7.01758346]
[1735171514621,1.6012,198.6,198.54,7.01758346]
[1735171516218,1.6012,198.6,198.51,2.5208]
[1735171516423,2.5204,198.55,198.51,2.5208]
[1735171517524,1.6012,198.6,198.5,10.96723697]
[1735171517724,1.6198,198.59,198.48,1.5884]
[1735171518454,2.5206,198.54,198.49,2.521]
[1735171518728,1.6198,198.59,198.5,10.96723697]
[1735171521335,2.5206,198.53,198.5,10.96723697]
[1735171522140,2.5206,198.53,198.49,2.5211]
[1735171523730,1.6198,198.59,198.48,1.5884]
[1735171524030,10.96723697,198.58,198.44,10.96723697]
[1735171524436,1.6548,198.57,198.44,10.96723697]
[1735171524638,3.58,198.56,198.44,10.96723697]
[1735171524929,2.5212,198.49,198.45,2.5215]
[1735171525123,10.96723697,198.55,198.41,12.62753697]
[1735171525528,2.5215,198.46,198.42,2.522]
[1735171527625,2.5214,198.47,198.42,2.522]
[1735171528634,2.5216,198.46,198.41,4.1824]
[1735171529535,2.5216,198.46,198.42,2.522]
[1735171529754,10.96723697,198.55,198.42,2.522]
[1735171529939,1.6548,198.57,198.45,2.5216]
[1735171530137,3.6,198.56,198.45,2.5216]
[1735171530838,2.5211,198.49,198.45,2.5216]
[1735171531037,3.6,198.56,198.44,2.5216]
[1735171531435,2.5208,198.52,198.43,10.96723697]
[1735171531638,2.5208,198.52,198.47,2.5213]
[1735171534041,2.5209,198.51,198.47,2.5213]
[1735171535932,2.5207,198.53,198.46,10.96723697]
[1735171536440,2.5205,198.54,198.49,2.521]
[1735171536738,2.5205,198.54,198.46,10.96723697]
[1735171537139,2.5205,198.54,198.5,2.5209]
[1735171538148,2.5205,198.54,198.5,9.54207619]
[1735171540338,2.5205,198.54,198.5,2.5209]
[1735171540538,2.5205,198.54,198.51,7.02117619]
[1735171541344,2.5203,198.56,198.51,9.54197619]
[1735171542140,2.5204,198.55,198.51,9.54197619]
[1735171542341,2.5204,198.55,198.53,7.02117619]
[1735171542842,2.5202,198.57,198.53,9.54167619]
[1735171544342,1.6012,198.6,198.53,9.54167619]
[1735171544642,2.5202,198.56,198.53,9.54167619]
[1735171544847,2.5202,198.56,198.53,7.02117619]
[1735171545341,2.5202,198.56,198.53,9.54177619]
[1735171545748,2.5201,198.57,198.53,9.54177619]
[1735171547748,8.62237619,198.6,198.44,3.6]
[1735171548050,2.5209,198.51,198.49,7.02117619]
[1735171549048,2.5206,198.53,198.49,7.02117619]
[1735171549348,2.5206,198.53,198.43,3.58]
[1735171549548,1.5973,198.57,198.51,7.02117619]
[1735171549749,2.5205,198.54,198.51,7.02117619]
[1735171551057,1.5973,198.57,198.51,7.02117619]
[1735171551260,1.5973,198.57,198.53,7.02117619]
[1735171551556,2.5203,198.56,198.53,7.02117619]
[1735171555258,1.5973,198.57,198.43,3.58]
[1735171555554,1.5973,198.57,198.5,7.02117619]
[1735171556359,2.5206,198.54,198.5,7.02117619]
[1735171556960,1.5973,198.57,198.5,7.02117619]
[1735171556961,2.5204,198.55,198.5,7.02117619]
[1735171558158,1.5973,198.57,198.43,3.58]
[1735171558461,1.5973,198.57,198.52,7.02117619]
[1735171558957,2.5203,198.56,198.52,7.02117619]
[1735171559256,20.95708008,198.67,198.54,7.02117619]
[1735171559557,3.2098,198.65,198.58,7.02117619]
[1735171559758,2.5197,198.61,198.58,7.02117619]
[1735171559953,3.2098,198.65,198.58,7.02117619]
[1735171560150,3.2098,198.65,198.52,1.5822]
[1735171560151,1.628,198.65,198.6,7.02117619]
[1735171560357,2.5192,198.64,198.6,9.54087619]
[1735171560559,1.628,198.65,198.6,9.54087619]
[1735171561547,4.1471,198.65,198.6,9.54087619]
[1735171561751,4.1471,198.65,198.62,7.02117619]
[1735171561957,2.5193,198.64,198.62,7.02117619]
[1735171562158,6.98569336,198.74,198.62,7.02117619]
[1735171562463,8.68937619,198.73,198.66,7.02117619]
[1735171562758,2.5188,198.67,198.66,7.02117619]
[1735171564255,2.5188,198.67,198.62,10.9537133]
[1735171564453,2.5188,198.67,198.62,13.4731133]
[1735171564654,5.1082,198.73,198.59,12.4853133]
[1735171564655,16.0619133,198.73,198.59,12.4853133]
[1735171564965,10.9537133,198.67,198.56,10.9537133]
[1735171565163,10.9537133,198.67,198.55,2.5203]
[1735171565164,2.5199,198.59,198.55,2.5203]
[1735171565959,2.5199,198.59,198.54,2.5205]
[1735171566958,10.9537133,198.64,198.53,10.9537133]
[1735171567758,2.5201,198.57,198.53,10.9537133]
[1735171568157,2.5203,198.56,198.51,4.0524]
[1735171568361,2.5203,198.56,198.5,10.9537133]
[1735171568362,3.44,198.59,198.5,10.9537133]
[1735171569162,2.5206,198.54,198.5,10.9537133]
[1735171569362,3.44,198.59,198.47,10.9537133]
[1735171569566,2.5203,198.56,198.47,13.4750133]
[1735171569762,3.44,198.59,198.47,13.4750133]
[1735171570257,2.5207,198.53,198.47,13.4750133]
[1735171570461,10.9537133,198.58,198.45,2.5215]
[1735171570661,10.9537133,198.58,198.44,10.9537133]
[1735171570662,12.4662133,198.58,198.44,10.9537133]
[1735171570859,10.9537133,198.55,198.41,10.9537133]
[1735171571058,1.5687,198.54,198.42,2.522]
[1735171571272,3.44,198.53,198.41,10.9537133]
[1735171571759,3.44,198.53,198.41,13.4758133]
[1735171572460,10.9537133,198.52,198.38,10.9537133]
[1735171573079,10.9537133,198.49,198.37,1.5139]
[1735171573277,3.1706,198.48,198.33,10.9537133]
[1735171573466,3.44,198.47,198.33,10.9537133]
[1735171573655,2.5223,198.4,198.34,2.5229]
[1735171573965,10.9537133,198.46,198.33,10.9537133]
[1735171574463,2.5221,198.42,198.33,10.9537133]
[1735171574663,1.6698,198.45,198.32,2.5232]
[1735171574860,10.9537133,198.43,198.3,10.9537133]
[1735171575061,2.5228,198.36,198.3,13.4771133]
[1735171575458,2.5229,198.35,198.3,10.9537133]
[1735171576265,2.5234,198.31,198.21,3.44]
[1735171576465,1.5818,198.34,198.24,10.9537133]
[1735171576767,1.5572,198.39,198.3,10.9537133]
[1735171576968,1.5572,198.39,198.3,13.4771133]
[1735171577177,1.5572,198.39,198.3,10.9537133]
[1735171578365,2.523,198.34,198.3,10.9537133]
[1735171578570,2.523,198.34,198.28,2.5237]
[1735171579073,2.5233,198.32,198.24,10.9537133]
[1735171579469,2.5231,198.34,198.28,2.5238]
[1735171579671,1.6239,198.37,198.27,10.9537133]
[1735171580164,1.6452,198.38,198.3,10.9537133]
[1735171580371,3.44,198.43,198.33,10.9537133]
[1735171580566,3.44,198.44,198.33,10.9537133]
[1735171581168,10.9537133,198.47,198.34,3.3]
[1735171581478,3.3,198.48,198.34,4.9157]
[1735171581682,2.5217,198.45,198.39,2.5224]
[1735171581968,3.3,198.48,198.39,2.5224]
[1735171582271,3.3,198.48,198.4,2.5222]
[1735171582272,2.5215,198.46,198.4,2.5222]
[1735171582468,3.3,198.48,198.36,10.9537133]
[1735171582662,3.3,198.48,198.39,10.9537133]
[1735171582862,14.1465133,198.52,198.39,10.9537133]
[1735171583176,3.3,198.51,198.39,10.9537133]
[1735171583475,2.5213,198.48,198.42,2.5219]
[1735171584590,2.5211,198.5,198.43,2.5219]
[1735171584973,3.3,198.51,198.43,2.5219]
[1735171585366,2.5212,198.48,198.34,4.9157]
[1735171585575,3.3,198.51,198.38,10.9537133]
[1735171585772,1.5289,198.5,198.38,10.9537133]
[1735171586574,1.5289,198.5,198.34,4.9157]
[1735171586875,1.5289,198.5,198.38,10.9537133]
[1735171589575,2.5214,198.47,198.38,10.9537133]
[1735171590078,2.5214,198.47,198.4,2.5222]
[1735171590269,2.5214,198.47,198.38,10.9537133]
[1735171590878,2.5214,198.47,198.41,2.522]
[1735171591078,2.5214,198.47,198.38,10.9537133]
[1735171592381,15.13,198.65,198.36,3.3]
[1735171592382,2.5213,198.48,198.36,3.3]
[1735171592582,3.3,198.5,198.42,2.5219]
[1735171592888,3.3,198.51,198.39,10.9537133]
[1735171593079,3.3,198.51,198.37,1.5721]
[1735171593080,1.6459,198.49,198.37,1.5721]
[1735171593278,1.6459,198.49,198.36,10.9537133]
[1735171593874,2.5216,198.45,198.36,10.9537133]
[1735171594275,2.5213,198.48,198.42,2.522]
[1735171594481,1.6459,198.49,198.39,10.9537133]
[1735171595281,3.3,198.53,198.42,10.9537133]
[1735171595476,3.3,198.54,198.42,10.9537133]
[1735171595980,3.3,198.54,198.43,1.5568]
[1735171596579,2.521,198.51,198.45,2.5215]
[1735171596973,3.3,198.54,198.43,1.5568]
[1735171598176,4.7236,198.6,198.45,10.9537133]
[1735171598485,2.5205,198.55,198.49,2.5211]
[1735171599092,2.5206,198.54,198.49,2.5211]
[1735171599489,3.3,198.59,198.45,10.9537133]
[1735171599689,1.6459,198.6,198.51,10.9537133]
[1735171599883,1.46189374,198.66,198.54,10.9537133]
[1735171599884,1.5717,198.65,198.54,10.9537133]
[1735171600081,3.1295,198.65,198.54,10.9537133]
[1735171600685,2.5193,198.64,198.58,2.5198]
[1735171602282,1.5578,198.65,198.57,10.9537133]
[1735171602585,15.13,198.86,198.57,10.9537133]
[1735171602586,3.3,198.71,198.57,10.9537133]
[1735171602788,14.2537133,198.72,198.57,10.9537133]
[1735171602976,10.9537133,198.72,198.57,10.9537133]
[1735171603182,2.5188,198.68,198.62,2.5194]
[1735171604385,10.9537133,198.72,198.6,10.9537133]
[1735171604583,2.5186,198.7,198.64,2.5191]
[1735171604783,4.818,198.74,198.6,10.9537133]
[1735171605182,2.5185,198.7,198.64,2.5192]
[1735171607190,3.2213,198.74,198.6,10.9537133]
[1735171607391,10.9537133,198.72,198.61,3.3]
[1735171608412,2.5186,198.69,198.64,2.5192]
[1735171608600,10.9537133,198.72,198.64,2.5192]
[1735171610400,2.5186,198.69,198.62,2.5195]
[1735171611706,2.5186,198.69,198.63,2.5193]
[1735171614409,3.2213,198.74,198.63,2.5193]
[1735171614702,2.5187,198.68,198.63,2.5193]
[1735171614897,2.5187,198.68,198.6,10.9537133]
[1735171615104,10.9537133,198.72,198.59,3.28]
[1735171616114,10.9537133,198.72,198.6,2.5197]
[1735171616402,1.5894,198.73,198.57,10.9537133]
[1735171616610,1.5894,198.73,198.6,10.9537133]
[1735171617307,1.5894,198.73,198.58,3.28]
[1735171617502,1.5894,198.73,198.62,2.5194]
[1735171617503,2.5189,198.67,198.62,2.5194]
[1735171618207,1.5894,198.73,198.6,10.9537133]
[1735171618408,2.5187,198.69,198.63,2.5193]
[1735171619915,20.95708008,198.88,198.66,21.9074266]
[1735171620210,33.45199338,198.88,198.72,10.9537133]
[1735171620420,27.94277344,198.87,198.75,10.9537133]
[1735171621105,27.94277344,198.87,198.77,2.5175]
[1735171621711,68.38046019,198.88,198.77,2.5175]
[1735171621712,2.5167,198.84,198.77,2.5175]
[1735171622111,1.5412,198.88,198.75,10.9537133]
[1735171622414,12.4949133,198.88,198.75,10.9537133]
[1735171622709,12.4949133,198.88,198.75,3.28]
[1735171622910,12.4949133,198.88,198.73,1.5121]
[1735171623110,12.4949133,198.88,198.75,3.28]
[1735171623414,10.9537133,198.85,198.73,1.5121]
[1735171623713,10.9537133,198.82,198.69,10.9537133]
[1735171623914,10.9537133,198.79,198.68,3.28]
[1735171624108,1.5851,198.78,198.67,1.6304]
[1735171625215,1.5851,198.78,198.66,10.9537133]
[1735171625411,10.9537133,198.77,198.63,10.9537133]
[1735171625917,3.1778,198.78,198.63,10.9537133]
[1735171626110,10.9537133,198.76,198.63,10.9537133]
[1735171626315,2.5185,198.7,198.64,2.5192]
[1735171626611,10.9537133,198.76,198.63,10.9537133]
[1735171626813,2.518,198.74,198.67,2.5188]
[1735171627016,14.1315133,198.78,198.67,2.5188]
[1735171627318,14.1315133,198.78,198.66,2.5189]
[1735171627714,14.1315133,198.78,198.63,10.9537133]
[1735171630211,1.5851,198.78,198.63,10.9537133]
[1735171630414,1.5851,198.78,198.68,2.5187]
[1735171630818,2.5177,198.76,198.71,2.5183]
[1735171631018,1.5851,198.78,198.71,2.5183]
[1735171631217,3.28,198.85,198.69,10.9537133]
[1735171631417,1.5861,198.82,198.69,10.9537133]
[1735171631641,2.5174,198.78,198.73,2.518]
[1735171631819,1.5861,198.82,198.69,12.5536133]
[1735171632020,6.98569336,198.92,198.79,10.9537133]
[1735171632216,6.98569336,198.92,198.82,10.9537133]
[1735171633332,55.88554689,198.94,198.88,2.5161]
[1735171633333,2.5155,198.94,198.88,2.5161]
[1735171633720,1.5436,199.0,198.86,3.28]
[1735171633919,2.5155,198.94,198.86,2.5164]
[1735171634918,1.6643,198.98,198.81,1.6525]
[1735171635121,1.6643,198.98,198.8,19.08641287]
[1735171635323,17.48821287,198.96,198.8,1.5982]
[1735171635526,2.5163,198.87,198.8,4.1154]
[1735171635721,3.28,198.95,198.72,1.6677]
[1735171635927,1.6182,198.94,198.74,17.48821287]
[1735171636124,2.5167,198.84,198.78,2.5174]
[1735171636323,1.6182,198.94,198.74,17.48821287]
[1735171636527,1.6182,198.94,198.75,3.28]
[1735171636718,2.5163,198.87,198.81,2.517]
[1735171636924,2.5163,198.87,198.75,3.28]
[1735171637118,1.6182,198.94,198.75,3.28]
[1735171637327,2.5166,198.85,198.75,3.28]
[1735171637521,1.6182,198.94,198.73,1.583]
[1735171637522,17.48821287,198.92,198.73,1.583]
[1735171637833,3.28,198.89,198.74,3.28]
[1735171637999,3.28,198.89,198.75,2.5178]
[1735171638000,2.5166,198.85,198.75,2.5178]
[1735171638124,1.5316,198.88,198.75,2.5178]
[1735171638424,1.5316,198.88,198.76,17.48821287]
[1735171638629,2.5164,198.87,198.76,17.48821287]
[1735171639328,2.5164,198.87,198.74,3.28]
[1735171639329,2.5164,198.87,198.8,2.5171]
[1735171639829,2.5164,198.87,198.76,17.48821287]
[1735171640525,3.28,198.92,198.76,17.48821287]
[1735171640726,2.5164,198.87,198.76,17.48821287]
[1735171641027,3.32,198.93,198.8,17.48821287]
[1735171641330,1.6182,198.94,198.81,3.32]
[1735171641529,1.6182,198.94,198.82,1.6348]
[1735171642121,2.5159,198.9,198.84,2.5167]
[1735171642326,1.6182,198.94,198.84,17.48821287]
[1735171643026,1.5483,198.95,198.84,17.48821287]
[1735171644032,4.0636,198.95,198.84,17.48821287]
[1735171644632,4.0636,198.95,198.89,2.516]
[1735171645023,2.5153,198.95,198.89,2.516]
[1735171647830,2.5153,198.95,198.9,2.5159]
[1735171652640,2.5154,198.94,198.89,2.516]
[1735171653838,2.5157,198.92,198.87,2.5163]
[1735171654040,1.5268,198.97,198.87,2.5163]
[1735171654735,3.32,198.96,198.84,17.48821287]
[1735171655341,2.5157,198.93,198.84,17.48821287]
[1735171656039,2.5157,198.93,198.87,2.5162]
[1735171656637,2.5157,198.92,198.87,2.5162]
[1735171659143,1.5268,198.97,198.86,10.9279881]
[1735171659345,2.5157,198.92,198.88,2.5161]
[1735171659742,2.5157,198.92,198.86,10.9279881]
[1735171660141,1.5268,198.97,198.86,10.9279881]
[1735171660346,2.5162,198.88,198.83,14.2479881]
[1735171660845,1.5268,198.97,198.86,10.9279881]
[1735171662549,1.5268,198.97,198.86,13.4443881]
[1735171662550,2.5158,198.91,198.86,13.4443881]
[1735171663744,1.5268,198.97,198.87,2.5162]
[1735171663948,2.5157,198.92,198.87,2.5162]
[1735171664853,1.5268,198.97,198.87,2.5162]
[1735171665044,2.5155,198.94,198.87,2.5162]
[1735171665849,2.5155,198.94,198.88,2.5161]
[1735171668949,2.5155,198.93,198.89,2.516]
[1735171671250,1.5268,198.97,198.86,10.9279881]
[1735171671451,2.5152,198.96,198.92,2.5156]
[1735171675162,1.5268,198.97,198.93,2.5155]
[1735171676358,4.0419,198.97,198.93,2.5155]
[1735171679465,2.5152,198.96,198.93,9.50719251]
[1735171680364,2.5152,198.96,198.93,2.5155]
[1735171681564,2.5152,198.96,198.91,6.99169251]
[1735171682361,2.5158,198.92,198.87,2.5162]
[1735171682555,2.5158,198.92,198.88,6.99169251]
[1735171682757,6.99169251,198.92,198.83,6.84383482]
[1735171683062,6.99169251,198.92,198.84,9.50839251]
[1735171683256,3.3,198.96,198.86,6.99169251]
[1735171683458,6.99169251,198.95,198.88,6.99169251]
[1735171683655,3.3,198.96,198.88,6.99169251]
[1735171683861,2.5153,198.95,198.91,2.5157]
[1735171684060,1.5268,198.97,198.9,6.99169251]
[1735171684463,2.5153,198.95,198.9,9.50759251]
[1735171684665,2.5153,198.95,198.9,6.99169251]
[1735171686661,2.5155,198.94,198.9,9.50759251]
[1735171689072,2.5155,198.94,198.9,2.5159]
[1735171692762,1.5268,198.97,198.91,6.99169251]
[1735171692963,4.0419,198.97,198.92,2.5155]
[1735171693266,1.5268,198.97,198.89,6.99169251]
[1735171693462,2.5155,198.94,198.89,9.50759251]
[1735171694269,2.5153,198.95,198.91,6.99169251]
[1735171696676,4.0419,198.97,198.92,2.5156]
[1735171696975,1.5268,198.97,198.92,2.5156]
[1735171698572,2.5152,198.96,198.92,2.5156]
[1735171703277,4.0419,198.97,198.93,2.5155]
[1735171703478,1.5268,198.97,198.93,2.5155]
[1735171703681,1.5268,198.97,198.93,9.50719251]
[1735171703884,2.5152,198.96,198.93,9.50719251]
[1735171704983,2.5152,198.96,198.93,6.99169251]
[1735171706177,2.5152,198.96,198.92,2.5156]
[1735171708983,2.515,198.98,198.93,6.99169251]
[1735171709689,3.26,199.03,198.95,6.99169251]
[1735171709889,10.25169251,199.03,198.95,6.99169251]
[1735171710186,6.99169251,199.03,198.95,6.99169251]
[1735171710979,2.5147,199.0,198.97,2.515]
[1735171711978,2.5145,199.01,198.97,2.515]
[1735171712183,2.5145,199.01,198.97,9.50669251]
[1735171712779,1.6312,199.05,198.99,6.99169251]
[1735171713387,2.5144,199.03,198.99,6.99169251]
[1735171714889,2.5144,199.03,198.98,2.5149]
[1735171715190,2.5144,199.03,198.98,9.50659251]
[1735171716091,4.1453,199.05,199.0,6.99169251]
[1735171716891,2.5142,199.04,199.0,9.50629251]
[1735171718086,2.12759899,199.06,199.02,2.5143]
[1735171718286,2.12759899,199.06,199.04,6.99169251]
[1735171720293,2.12759899,199.06,199.04,2.5141]
[1735171723496,6.99169251,199.05,198.95,1.5119]
[1735171723793,6.99169251,199.01,198.93,6.99169251]
[1735171723986,2.5151,198.97,198.93,6.99169251]
[1735171724186,6.99169251,198.99,198.92,6.99169251]
[1735171724585,6.99169251,198.99,198.88,8.49693482]
[1735171724586,6.99169251,198.97,198.88,8.49693482]
[1735171724787,6.99169251,198.95,198.88,13.83552733]
[1735171724988,6.99169251,198.96,198.88,13.83552733]
[1735171725191,4.9234,199.0,198.9,6.99169251]
[1735171725395,6.99169251,198.99,198.92,6.99169251]
[1735171725796,4.9234,199.0,198.94,2.5154]
[1735171726193,2.515,198.98,198.92,9.50719251]
[1735171726397,4.9234,199.0,198.92,9.50719251]
[1735171727397,2.5151,198.97,198.92,9.50719251]
[1735171730000,2.5152,198.96,198.92,6.99169251]
[1735171732209,2.515,198.97,198.92,9.50729251]
[1735171732601,11.91509251,199.0,198.92,6.99169251]
[1735171732801,2.5149,198.98,198.93,2.5155]
[1735171733004,11.91509251,199.0,198.92,6.99169251]
[1735171734406,2.5151,198.97,198.92,9.50739251]
[1735171736401,11.91509251,199.0,198.92,6.99169251]
[1735171736707,2.5149,198.98,198.93,2.5155]
[1735171738006,1.647,199.04,198.96,6.99169251]
[1735171738208,1.647,199.04,198.99,6.99169251]
[1735171738707,2.5144,199.02,198.99,6.99169251]
[1735171742710,2.5148,199.0,198.96,2.5151]
[1735171742903,2.5148,199.0,198.97,6.99169251]
[1735171743599,1.647,199.04,198.97,6.99169251]
[1735171743804,2.5145,199.02,198.97,9.50659251]
[1735171744007,2.5145,199.02,198.97,6.99169251]
[1735171746309,1.647,199.04,198.99,6.99169251]
[1735171746514,2.12759899,199.06,198.99,6.99169251]
[1735171747109,2.12759899,199.06,199.02,2.5144]
[1735171748406,4.64149899,199.06,199.02,2.5144]
[1735171749605,2.12759899,199.06,199.01,6.99169251]
[1735171749806,2.12759899,199.06,199.03,9.50589251]
[1735171750813,2.12759899,199.06,198.94,3.1446]
[1735171751003,6.99169251,199.05,198.94,3.1446]
[1735171751312,6.99169251,199.05,198.98,6.99169251]
[1735171752513,2.5144,199.03,198.99,2.5147]
[1735171753712,2.5145,199.01,198.97,2.515]
[1735171754812,6.99169251,199.01,198.82,165.55731119]
[1735171755006,1.645,199.0,198.93,6.99169251]
[1735171755619,2.5152,198.96,198.93,6.99169251]
[1735171759017,1.645,199.0,198.93,6.99169251]
[1735171759315,1.645,199.0,198.95,6.99169251]
[1735171759815,1.645,199.0,198.97,6.99169251]
[1735171760707,4.1597,199.0,198.97,6.99169251]
[1735171760909,1.645,199.0,198.97,6.99169251]
[1735171761109,3.0493,199.04,198.97,6.99169251]
[1735171761310,2.5143,199.03,198.97,6.99169251]
[1735171761508,2.5143,199.03,198.98,2.5148]
[1735171761816,3.0493,199.04,198.99,6.99169251]
[1735171763519,2.5142,199.04,198.99,9.50649251]
[1735171764511,2.5142,199.04,199.0,2.5146]
[1735171765919,2.5143,199.03,198.99,2.5148]
[1735171766215,2.12759899,199.06,199.0,6.99169251]
[1735171767011,2.5143,199.03,199.0,9.50629251]
[1735171767513,2.5142,199.04,199.0,9.50629251]
[1735171771319,4.64159899,199.06,199.01,2.5144]
[1735171771918,2.514,199.05,199.02,6.99169251]
[1735171772312,2.12759899,199.06,199.02,6.99169251]
[1735171772512,2.12759899,199.06,198.91,6.84383482]
[1735171772717,6.99169251,199.05,198.91,10.02383482]
[1735171773018,6.99169251,199.05,198.98,6.99169251]
[1735171774521,2.5142,199.04,199.0,2.5146]
[1735171775914,2.5143,199.03,198.98,6.99169251]
[1735171776714,2.5143,199.03,198.99,2.5147]
[1735171776909,2.5141,199.04,198.98,6.99169251]
[1735171777121,2.5141,199.04,198.99,6.99169251]
[1735171778018,2.5141,199.04,198.99,9.50639251]
[1735171779320,6.99169251,199.05,198.99,9.50639251]
[1735171779519,2.5143,199.03,198.99,9.50639251]
[1735171779920,2.5142,199.04,199.0,2.5146]
[1735171780822,2.514,199.05,199.01,9.50619251]
[1735171781023,2.12759899,199.06,199.01,6.99169251]
[1735171781222,2.12759899,199.06,199.03,6.99169251]
[1735171782524,2.12759899,199.06,199.04,2.5141]
[1735171788227,2.12759899,199.06,199.05,9.50569251]
[1735171795526,1.5335,199.14,199.07,2.5137]
[1735171795727,1.5335,199.14,199.1,6.99169251]
[1735171796122,2.5131,199.13,199.08,2.5136]
[1735171796526,2.5131,199.13,199.09,6.99169251]
[1735171803025,2.5134,199.11,199.06,2.5138]
[1735171803224,6.99169251,199.1,199.03,6.99169251]
[1735171803525,2.5137,199.08,199.0,2.5146]
[1735171803729,3.18,199.11,198.96,32.10853929]
[1735171803931,1.5335,199.14,199.05,6.99169251]
[1735171804232,1.5335,199.14,199.07,6.99169251]
[1735171804433,6.99169251,199.13,199.07,6.99169251]
[1735171804834,2.5135,199.1,199.07,6.99169251]
[1735171805038,6.99169251,199.13,199.07,6.99169251]
[1735171805427,1.5335,199.14,199.09,6.99169251]
[1735171805730,8.52519251,199.14,199.02,3.18]
[1735171805930,2.5131,199.12,199.02,3.18]
[1735171806132,2.5131,199.12,199.07,6.99169251]
[1735171806328,8.52519251,199.14,199.07,6.99169251]
[1735171806531,2.5131,199.12,199.07,9.50539251]
[1735171806831,8.52519251,199.14,199.07,6.99169251]
[1735171807229,6.99169251,199.12,198.98,3.18]
[1735171807437,6.99169251,199.1,199.04,6.99169251]
[1735171807830,2.5138,199.08,199.04,6.99169251]
[1735171808435,2.5136,199.09,199.04,6.99169251]
[1735171808631,6.99169251,199.1,199.04,6.99169251]
[1735171808831,6.99169251,199.1,198.96,1.5532]
[1735171808832,3.18,199.09,198.96,1.5532]
[1735171809032,6.99169251,199.08,198.96,1.5532]
[1735171809235,6.99169251,199.08,199.0,6.99169251]
[1735171809634,2.5141,199.05,199.0,6.99169251]
[1735171810132,2.5141,199.05,199.02,6.99169251]
[1735171810334,2.5138,199.07,199.02,6.99169251]
[1735171810536,6.4489,199.09,199.02,6.99169251]
[1735171811436,2.5139,199.06,198.96,1.5532]
[1735171811738,2.5139,199.06,199.03,6.99169251]
[1735171812439,2.514,199.05,198.95,1.5535]
[1735171812634,6.99169251,199.08,199.0,6.99169251]
[1735171814437,2.5142,199.04,199.02,6.99169251]
[1735171815038,6.4489,199.09,199.02,6.99169251]
[1735171815341,3.2689,199.09,198.95,1.5535]
[1735171815836,3.2689,199.09,199.02,6.99169251]
[1735171817543,2.5141,199.05,199.02,6.99169251]